Workbook

Sheet MSU
B1: Kari Holopainen | E1: 4.12.1951
B2: MESTARUUSSARJA | E2: Runkosarja | I2: Kärkilyönnit (KL), pesänvälit | P2: Ylempi loppusarja | W2: Alempi loppusarja | AD2: Arvo-ottelut | AH2: Mitalit
B3: Vuosi | C3: Sija | D3: Seura | E3: OTT | F3: KUN | G3: LÖI | H3: TOI | I3: KL | J3: 0 > 1 | K3: 1 > 2 | L3: 2 > 3 | M3: 3 > k | N3: KL-% | P3: OTT | Q3: KUN | R3: LÖI | S3: TOI | T3: KL | U3: KL-% | W3: OTT | X3: KUN | Y3: LÖI | Z3: TOI | AA3: KL | AB3: KL-% | AD3: IL | AE3: LL | AF3: Cup | AG3: K | AH3: H | AI3: P
B4: 1979 | C4: 2. | D4: Lippo | F4: suomensarja
B5: 1980
B6: 1981
B7: 1982 | C7: 12. | D7: Lippo | E7: 6 | F7: 0 | G7: 0 | H7: 1 | I7: 11 | J7: 3 | K7: 2 | L7: 6 | M7: 0 | N7: 40.7 %
B8: 1983
B9: 1984
B10: 1985
B11: 1986
B12: 1987
B13: 1988 | C13: 6. | D13: PattU | F13: suomensarja
B14: 1989 | C14: 6. | D14: PattU | F14: suomensarja
B15: Yhteensä | E15: 6 | F15: 0 | G15: 0 | H15: 1 | I15: 11 | J15: 3 | K15: 2 | L15: 6 | M15: 0 | N15: 40.7 % | P15: 0 | Q15: 0 | R15: 0 | S15: 0 | T15: 0 | U15: 0.0 % | W15: 0 | X15: 0 | Y15: 0 | Z15: 0 | AA15: 0 | AB15: 0.0 % | AD15: 0 | AE15: 0 | AF15: 0 | AG15: 0 | AH15: 0 | AI15: 0
B16: Pesispörssi | D16: 21.7
B18: URA SM-SARJASSA | E18: OTT | F18: KUN | G18: LÖI | H18: TOI | I18: KL | K18: ka/L | L18: ka/T | M18: ka/KL | N18: KL-% | P18: ENSIMMÄISET
B19: Runkosarja | E19: 6 | F19: 0 | G19: 0 | H19: 1 | I19: 11 | K19: 0.00 | L19: 0.17 | M19: 1.83 | N19: 40.7 % | P19: Ottelu | R19: 30.05. 1982 Lippo - KiU 9-11 | Y19: 1. ottelu | AA19: 30 v 5 kk 26 pv
B20: Ylempi loppusarja | P20: Lyöty
B21: Alempi loppusarja | P21: Tuotu | R21: 30.05. 1982 Lippo - KiU 9-11 | Y21: 1. ottelu | AA21: 30 v 5 kk 26 pv
B22: KAIKKI | E22: 6 | F22: 0 | G22: 0 | H22: 1 | I22: 11 | K22: 0.00 | L22: 0.17 | M22: 1.83 | N22: 40.7 % | P22: Kunnari
B24: Seurat | D24: Lippo = Oulun Lippo (1955)
D25: PattU = Pattijoen Urheilijat (1928)

Sheet MSS
B1: Kari Holopainen | E1: 4.12.1951
B2: YKKÖSPESIS | E2: Runkosarja | L2: Runkosarja TOP-10 | Q2: Jatkosarjat | X2: SUOMENSARJA | AA2: Runkosarja | AH2: Runkosarja TOP-10 | AM2: Jatkosarjat
B3: Vuosi | C3: Sija | D3: Seura | E3: OTT | F3: KUN | G3: LÖI | H3: TOI | I3: KL | J3: KL-% | L3: LÖI | M3: TOI | N3: L+T | O3: KL | Q3: OTT | R3: KUN | S3: LÖI | T3: TOI | U3: KL | V3: KL-% | X3: Vuosi | Y3: Sija | Z3: Seura | AA3: OTT | AB3: KUN | AC3: LÖI | AD3: TOI | AE3: KL | AF3: KL-% | AH3: LÖI | AI3: TOI | AJ3: L+T | AK3: KL | AM3: OTT | AN3: KUN | AO3: LÖI | AP3: TOI | AQ3: KL | AR3: KL-%
X4: 1979 | Y4: 2. | Z4: Lippo
X6: 1982 | Y6: 12. | Z6: Lippo
X8: 1988 | Y8: 6. | Z8: PattU | AA8: 21 | AB8: 2 | AC8: 12 | AD8: 11
X9: 1989 | Y9: 6. | Z9: PattU
B10: YHTEENSÄ | E10: =SUM(E4:E9) -> 0 | F10: =SUM(F4:F9) -> 0 | G10: =SUM(G4:G9) -> 0 | H10: =SUM(H4:H9) -> 0 | I10: =SUM(I4:I9) -> 0 | J10: 0.0 % | K10: =SUM(K4:K9) -> 0 | Q10: =SUM(Q4:Q9) -> 0 | R10: =SUM(R4:R9) -> 0 | S10: =SUM(S4:S9) -> 0 | T10: =SUM(T4:T9) -> 0 | U10: =SUM(U4:U9) -> 0 | V10: 0.0 % | W10: =SUM(W4:W9) -> 0 | X10: YHTEENSÄ | AA10: =SUM(AA4:AA9) -> 21 | AB10: =SUM(AB4:AB9) -> 2 | AC10: =SUM(AC4:AC9) -> 12 | AD10: =SUM(AD4:AD9) -> 11 | AE10: =SUM(AE4:AE9) -> 0 | AF10: 0.0 % | AG10: =SUM(AG4:AG9) -> 0 | AM10: =SUM(AM4:AM9) -> 0 | AN10: =SUM(AN4:AN9) -> 0 | AO10: =SUM(AO4:AO9) -> 0 | AP10: =SUM(AP4:AP9) -> 0 | AQ10: =SUM(AQ4:AQ9) -> 0 | AR10: 0.0 % | AS10: =SUM(AS4:AS9) -> 0
B12: KAIKKI OTTELUT | E12: OTT | F12: KUN | G12: LÖI | H12: TOI | I12: KL | J12: KL-% | L12: ka/L | M12: ka/T | N12: ka/l+t | O12: ka/kl | R12: Seurat | T12: Lippo = Oulun Lippo (1955)
B13: SUPERPESIS | E13: 6 | F13: 0 | G13: 0 | H13: 1 | I13: 11 | J13: 40.7 % | K13: =PRODUCT(I13/J13) -> 27.02702703 | L13: =PRODUCT((F13+G13)/E13) -> 0.00 | M13: =PRODUCT(H13/E13) -> 0.17 | N13: =PRODUCT((F13+G13+H13)/E13) -> 0.17 | O13: =PRODUCT(I13/E13) -> 1.83 | T13: PattU = Pattijoen Urheilijat (1928)
B14: YKKÖSPESIS | E14: =PRODUCT(E10+Q10) -> 0 | F14: =PRODUCT(F10+R10) -> 0 | G14: =PRODUCT(G10+S10) -> 0 | H14: =PRODUCT(H10+T10) -> 0 | I14: =PRODUCT(I10+U10) -> 0 | J14: 0.0 % | K14: =PRODUCT(K10+W10) -> 0 | L14: 0.00 | M14: 0.00 | N14: 0.00 | O14: 0.00
B15: SUOMENSARJA | E15: =PRODUCT(AA10+AM10) -> 21 | F15: =PRODUCT(AB10+AN10) -> 2 | G15: =PRODUCT(AC10+AO10) -> 12 | H15: =PRODUCT(AD10+AP10) -> 11 | I15: =PRODUCT(AE10+AQ10) -> 0 | J15: 0.0 % | K15: =PRODUCT(AG10+AS10) -> 0 | L15: =PRODUCT((F15+G15)/E15) -> 0.67 | M15: =PRODUCT(H15/E15) -> 0.52 | N15: =PRODUCT((F15+G15+H15)/E15) -> 1.19 | O15: =PRODUCT(I15/E15) -> 0.00
B16: YHTEENSÄ | E16: =SUM(E13:E15) -> 27 | F16: =SUM(F13:F15) -> 2 | G16: 12 | H16: 12 | I16: 11 | J16: =PRODUCT(I16/K16) -> 40.7 % | K16: =SUM(K13:K15) -> 27.02702703 | L16: =PRODUCT((F16+G16)/E16) -> 0.52 | M16: =PRODUCT(H16/E16) -> 0.44 | N16: =PRODUCT((F16+G16+H16)/E16) -> 0.96 | O16: =PRODUCT(I16/6) -> 1.83
